bitfinex/quotes_SOLUSD_20250601
["timestamp","ask_amount","ask_price","bid_price","bid_amount"]
[1748806585096,19.85966388,155.2,155.15,26.30463669]
[1748806585296,36.71199428,155.21,155.19,6.44371415]
[1748806585485,36.71199428,155.21,155.16,26.0]
[1748806585684,56.57165816,155.21,155.17,6.44454469]
[1748806586304,19.85966388,155.2,155.16,6.4448807]
[1748806586487,36.71199428,155.21,155.14,39.5]
[1748806586488,19.85966388,155.19,155.15,6.44533079]
[1748806587320,23.86152321,155.2,155.14,6.44575908]
[1748806587321,19.85966388,155.18,155.14,6.44575908]
[1748806587812,19.85966388,155.18,155.13,56.13966388]
[1748806587813,19.85966388,155.17,155.13,42.72616942]
[1748806588122,19.85966388,155.17,155.13,16.72616942]
[1748806589206,19.85966388,155.14,155.08,1.6514]
[1748806589387,18.64964886,155.19,155.09,6.44767425]
[1748806589388,19.85966388,155.13,155.09,6.44767425]
[1748806589596,65.5,155.17,155.09,6.44767425]
[1748806589597,19.85966388,155.12,155.09,6.44767425]
[1748806589805,19.85966388,155.12,155.08,26.30784632]
[1748806590215,39.5,155.17,155.09,19.85966388]
[1748806590510,19.85966388,155.14,155.09,19.85966388]
[1748806590907,19.85966388,155.14,155.1,6.44745325]
[1748806591216,168.75966388,155.18,155.13,19.85966388]
[1748806591421,19.85966388,155.18,155.13,19.85966388]
[1748806592203,19.85966388,155.18,155.14,6.44579089]
[1748806592903,19.85966388,155.17,155.12,30.11966388]
[1748806593109,19.85966388,155.16,155.12,10.26]
[1748806593612,43.72118709,155.2,155.12,10.26]
[1748806593613,19.85966388,155.15,155.12,10.26]
[1748806594315,19.85966388,155.15,155.12,16.70659243]
[1748806596002,19.85966388,155.16,155.12,16.70659243]
[1748806596205,39.52,155.19,155.13,19.85966388]
[1748806596414,19.85966388,155.17,155.13,19.85966388]
[1748806596809,23.86152321,155.2,155.14,19.85966388]
[1748806597032,19.85966388,155.19,155.15,19.85966388]
[1748806598223,19.85966388,155.19,155.15,26.30492154]
[1748806599311,19.85966388,155.18,155.14,19.85966388]
[1748806599696,19.85966388,155.17,155.13,26.30587028]
[1748806600091,19.85966388,155.18,155.13,26.30587028]
[1748806611119,19.85966388,155.18,155.13,6.4462064]
[1748806611316,19.85966388,155.17,155.13,6.4462064]
[1748806613213,19.85966388,155.16,155.12,16.70658885]
[1748806613419,6.44420408,155.18,155.12,16.70658885]
[1748806613420,19.85966388,155.15,155.12,10.26]
[1748806614214,19.85966388,155.15,155.12,16.70649315]
[1748806614420,19.85966388,155.16,155.12,16.70649315]
[1748806616234,19.85966388,155.15,155.12,16.70649315]
[1748806617320,19.85966388,155.15,155.12,10.26]
[1748806617517,19.85966388,155.13,155.08,31.74096388]
[1748806618534,19.85966388,155.14,155.09,19.85966388]
[1748806618717,19.85966388,155.14,155.09,26.30722548]
[1748806619232,19.85966388,155.15,155.1,19.85966388]
[1748806619609,19.85966388,155.14,155.09,6.4475616]
[1748806619837,19.85966388,155.14,155.09,26.30722548]
[1748806620633,19.85966388,155.15,155.11,19.85966388]
[1748806620830,39.66,155.17,155.12,19.85966388]
[1748806620831,19.85966388,155.17,155.12,19.85966388]
[1748806621610,19.85966388,155.17,155.13,19.85966388]
[1748806622434,19.85966388,155.17,155.12,26.30628585]
[1748806624343,19.85966388,155.17,155.13,19.85966388]
[1748806624513,168.75966388,155.18,155.14,6.44579089]
[1748806626311,19.85966388,155.17,155.14,6.44579089]
[1748806629646,148.9,155.18,155.14,6.44579089]
[1748806629855,148.9,155.18,155.14,26.30545477]
[1748806630648,31.95399686,155.2,155.17,45.85966388]
[1748806630649,23.86152321,155.2,155.17,45.85966388]
[1748806630848,23.86152321,155.2,155.19,19.85966388]
[1748806631047,23.86152321,155.2,155.19,26.30337803]
[1748806634936,36.71199428,155.21,155.19,26.30337803]
[1748806635134,36.71199428,155.21,155.2,19.85966388]
[1748806635342,188.5,155.27,155.2,39.71932776]
[1748806635558,9.90268928,155.32,155.26,19.85966388]
[1748806635859,59.45966388,155.31,155.26,19.85966388]
[1748806636058,19.85966388,155.31,155.27,19.85966388]
[1748806636435,19.85966388,155.31,155.26,19.85966388]
[1748806636659,59.47966388,155.31,155.26,19.85966388]
[1748806636960,19.85966388,155.3,155.26,19.85966388]
[1748806638056,19.85966388,155.3,155.25,19.85966388]
[1748806638756,19.85966388,155.3,155.25,26.30080666]
[1748806638966,9.90268928,155.32,155.26,19.85966388]
[1748806638967,55.94112454,155.32,155.26,19.85966388]
[1748806639130,49.50268928,155.32,155.27,19.85966388]
[1748806639331,60.99416388,155.32,155.27,19.85966388]
[1748806639548,60.97416388,155.32,155.27,19.85966388]
[1748806640259,19.85966388,155.31,155.27,19.85966388]
[1748806641062,41.1145,155.32,155.27,19.85966388]
[1748806641241,19.85966388,155.31,155.27,19.85966388]
[1748806642655,19.85966388,155.31,155.27,26.30003177]
[1748806642857,19.85966388,155.31,155.27,19.85966388]
[1748806643758,19.85966388,155.31,155.26,36.62035611]
[1748806644263,19.85966388,155.3,155.26,10.32]
[1748806645370,26.29886236,155.3,155.26,10.32]
[1748806646067,26.29886236,155.3,155.26,30.17966388]
[1748806646369,19.85966388,155.3,155.26,30.17966388]
[1748806646669,39.54,155.31,155.26,36.62031538]
[1748806646971,148.9,155.34,155.28,19.85966388]
[1748806646972,26.29758886,155.33,155.28,19.85966388]
[1748806647746,26.29758886,155.33,155.28,26.29961]
[1748806647947,19.85966388,155.33,155.28,26.29961]
[1748806649485,168.75966388,155.34,155.29,19.85966388]
[1748806649655,168.75966388,155.34,155.3,19.85966388]
[1748806650164,148.9,155.34,155.31,19.85966388]
[1748806650774,168.75966388,155.34,155.3,19.85966388]
[1748806651271,175.19729075,155.34,155.3,19.85966388]
[1748806651476,175.19729075,155.34,155.29,26.29911281]
[1748806651678,175.19729075,155.34,155.29,19.85966388]
[1748806652055,19.85966388,155.33,155.29,19.85966388]
[1748806654177,19.85966388,155.32,155.27,19.85966388]
[1748806654777,26.29763691,155.33,155.28,19.85966388]
[1748806654969,26.29763691,155.33,155.29,19.85966388]
[1748806656381,26.29763691,155.33,155.28,19.85966388]
[1748806656757,19.85966388,155.32,155.27,26.29991648]
[1748806657251,26.29799593,155.32,155.27,26.29991648]
[1748806658879,148.9,155.34,155.28,19.85966388]
[1748806659058,19.85966388,155.33,155.28,19.85966388]
[1748806659589,19.85966388,155.32,155.27,26.29991648]
[1748806659965,19.85966388,155.32,155.27,19.85966388]
[1748806662761,19.85966388,155.32,155.27,26.29993969]
[1748806664377,26.29802215,155.32,155.27,26.29993969]
[1748806664561,26.29802215,155.32,155.27,19.85966388]
[1748806665264,19.85966388,155.31,155.27,19.85966388]
[1748806667598,26.29802215,155.32,155.27,26.29995532]
[1748806668273,6.43835827,155.32,155.27,26.29995532]
[1748806668594,26.29802215,155.32,155.27,26.29995532]
[1748806670181,26.29802215,155.32,155.27,19.85966388]
[1748806671580,26.29802215,155.32,155.27,26.3000163]
[1748806671979,6.43790639,155.33,155.27,26.3000163]
[1748806672176,19.85966388,155.32,155.27,26.3000163]
[1748806673083,19.85966388,155.31,155.26,56.17966388]
[1748806673423,19.85966388,155.31,155.26,30.17966388]
[1748806673703,19.85966388,155.3,155.26,10.32]
[1748806673906,19.85966388,155.28,155.26,10.32]
[1748806674084,26.29976098,155.28,155.23,26.30171402]
[1748806674682,6.4400971,155.28,155.23,26.30171402]
[1748806674900,26.29976098,155.28,155.23,26.30171402]
[1748806675479,26.29976098,155.28,155.23,19.85966388]
[1748806675902,19.85966388,155.27,155.22,36.56198429]
[1748806677997,19.85966388,155.27,155.23,19.85966388]
[1748806678195,26.29976098,155.28,155.23,26.3016561]
[1748806678791,148.9,155.32,155.26,19.85966388]
[1748806678990,148.9,155.32,155.29,19.85966388]
[1748806680096,148.9,155.32,155.29,26.29914496]
[1748806681306,148.9,155.32,155.28,26.29953047]
[1748806681604,19.85966388,155.36,155.31,19.85966388]
[1748806682184,19.85966388,155.36,155.31,26.29806441]
[1748806684384,19.85966388,155.33,155.28,19.85966388]
[1748806685488,19.85966388,155.32,155.27,30.11966388]
[1748806686201,19.85966388,155.3,155.27,10.26]
[1748806687684,19.85966388,155.29,155.24,19.85966388]
[1748806687895,19.85966388,155.28,155.23,36.54159017]
[1748806688110,19.85966388,155.28,155.23,30.09966388]
[1748806689194,19.85966388,155.28,155.23,36.54157493]
[1748806689395,26.29968119,155.28,155.23,30.09966388]
[1748806689803,19.85966388,155.24,155.16,16.11190689]
[1748806690002,19.85966388,155.23,155.18,19.85966388]
[1748806690214,19.85966388,155.23,155.17,10.24]
[1748806690215,19.85966388,155.24,155.19,19.85966388]
[1748806690605,19.85966388,155.25,155.2,19.85966388]
[1748806691117,19.85966388,155.25,155.2,26.302555]
[1748806691693,59.41966388,155.26,155.21,19.85966388]
[1748806693616,19.85966388,155.26,155.21,26.30250179]
[1748806694817,19.85966388,155.26,155.22,19.85966388]
[1748806695018,19.85966388,155.27,155.23,19.85966388]
[1748806695222,19.85966388,155.28,155.23,19.85966388]
[1748806695803,19.85966388,155.28,155.24,19.85966388]
[1748806697398,27.85102645,155.29,155.25,6.44122383]
[1748806697601,27.85102645,155.29,155.25,26.30088771]
[1748806698410,19.85966388,155.29,155.25,26.30088771]
[1748806698603,155.33828424,155.33,155.27,19.85966388]
[1748806698829,19.85966388,155.32,155.27,19.85966388]
[1748806699124,19.85966388,155.31,155.27,19.85966388]
[1748806700126,19.85966388,155.31,155.26,19.85966388]
[1748806700333,19.85966388,155.3,155.25,26.30075814]
[1748806700520,19.85966388,155.31,155.26,19.85966388]
[1748806700713,19.85966388,155.31,155.25,6.44109426]
[1748806700922,19.85966388,155.3,155.25,26.30075814]
[1748806702241,19.85966388,155.3,155.26,19.85966388]
[1748806702545,19.85966388,155.31,155.27,19.85966388]
[1748806702744,155.33793767,155.33,155.28,19.85966388]
[1748806702911,19.85966388,155.32,155.28,19.85966388]
[1748806704325,19.85966388,155.32,155.27,26.29967004]
[1748806704857,19.85966388,155.31,155.25,6.44122383]
[1748806705023,19.85966388,155.31,155.26,19.85966388]
[1748806706544,19.85966388,155.31,155.26,26.30029294]
[1748806706752,6.43845515,155.32,155.26,26.30029294]
[1748806706959,19.85966388,155.31,155.27,19.85966388]
[1748806707362,19.85966388,155.32,155.27,19.85966388]
[1748806709462,19.85966388,155.32,155.27,26.3000561]
[1748806709849,155.33804012,155.33,155.27,26.3000561]
[1748806710029,19.85966388,155.32,155.27,26.3000561]
[1748806711369,19.85966388,155.31,155.27,19.85966388]
[1748806712248,26.29850006,155.31,155.27,19.85966388]
[1748806712554,26.29850006,155.31,155.26,26.30035566]
[1748806712772,19.85966388,155.31,155.26,26.30035566]
[1748806713861,19.85966388,155.31,155.27,19.85966388]
[1748806714561,19.85966388,155.32,155.28,19.85966388]
[1748806715443,148.9,155.33,155.28,19.85966388]
[1748806715663,19.85966388,155.32,155.28,19.85966388]
[1748806716362,19.85966388,155.31,155.27,19.85966388]
[1748806718766,6.43849693,155.32,155.27,19.85966388]
[1748806718964,19.85966388,155.31,155.27,26.30004818]
[1748806720664,19.85966388,155.3,155.25,10.26]
[1748806720864,19.85966388,155.27,155.22,19.85966388]
[1748806721069,19.85966388,155.27,155.22,52.30213263]
[1748806721258,19.85966388,155.25,155.21,10.26]
[1748806722676,19.85966388,155.22,155.21,10.26]
[1748806722986,19.85966388,155.22,155.17,102.98]
[1748806723187,19.85966388,155.21,155.17,102.98]
[1748806723692,19.85966388,155.21,155.17,109.42445217]
[1748806725368,19.85966388,155.22,155.18,19.85966388]
[1748806726176,19.85966388,155.23,155.19,6.44371415]
[1748806727483,19.85966388,155.23,155.18,6.44412939]
[1748806727682,19.85966388,155.21,155.17,102.98]
[1748806729174,19.85966388,155.21,155.17,109.42441446]
[1748806729381,19.85966388,155.21,155.17,129.28407834]
[1748806730164,19.85966388,155.21,155.17,109.42441446]
[1748806731270,19.85966388,155.2,155.17,16.70441446]
[1748806731864,19.85966388,155.21,155.17,16.70441446]
[1748806733383,168.75966388,155.23,155.18,19.85966388]
[1748806733589,148.9,155.23,155.19,19.85966388]
[1748806733760,19.85966388,155.25,155.2,19.85966388]
[1748806734281,19.85966388,155.24,155.2,19.85966388]
[1748806734781,19.85966388,155.24,155.19,19.85966388]
[1748806735284,19.85966388,155.24,155.2,6.44329896]
[1748806740284,19.85966388,155.25,155.2,26.30296284]
[1748806740588,19.85966388,155.26,155.21,19.85966388]
[1748806741288,168.75966388,155.27,155.23,19.85966388]
[1748806741485,148.9,155.27,155.26,19.85966388]
[1748806741658,26.83793773,155.3,155.26,19.85966388]
[1748806741864,26.83793773,155.3,155.27,26.30005803]
[1748806743165,26.83793773,155.3,155.29,19.85966388]
[1748806743886,19.85966388,155.34,155.29,26.29922856]
[1748806745185,19.85966388,155.34,155.31,6.43873543]
[1748806745382,168.75966388,155.35,155.31,6.43873543]
[1748806745779,168.75966388,155.35,155.31,26.29839931]
[1748806747992,168.75966388,155.35,155.31,6.43873543]
[1748806750193,168.75966388,155.35,155.31,26.29839931]
[1748806750389,148.9,155.35,155.32,19.85966388]
[1748806750897,19.85966388,155.36,155.32,19.85966388]
[1748806751599,21.36706388,155.37,155.32,19.85966388]
[1748806752472,19.85966388,155.36,155.32,26.29788213]
[1748806753172,19.85966388,155.36,155.29,55.57842508]
[1748806753173,19.85966388,155.35,155.3,19.85966388]
[1748806754478,19.85966388,155.35,155.31,6.43873543]
[1748806757498,19.85966388,155.35,155.3,6.43900414]
[1748806757704,19.85966388,155.34,155.29,19.85966388]
[1748806758411,19.85966388,155.33,155.27,36.28]
[1748806758595,19.85966388,155.33,155.28,19.85966388]
[1748806758908,19.85966388,155.33,155.29,26.29922856]
[1748806760114,19.85966388,155.34,155.3,19.85966388]
[1748806760299,39.46,155.35,155.3,19.85966388]
[1748806760300,19.85966388,155.35,155.3,19.85966388]
[1748806760500,40.9674,155.37,155.31,19.85966388]
[1748806760501,19.85966388,155.36,155.31,19.85966388]
[1748806760712,47.40367392,155.37,155.29,6.43956468]
[1748806760909,19.85966388,155.36,155.31,19.85966388]
[1748806761407,40.9674,155.37,155.31,19.85966388]
[1748806761601,19.85966388,155.36,155.31,19.85966388]
[1748806762709,19.85966388,155.36,155.31,26.29810257]
[1748806763306,7.94368335,155.37,155.31,26.29810257]
[1748806763509,19.85966388,155.36,155.31,26.29810257]
[1748806775025,185.32137213,155.38,155.35,19.85966388]
[1748806775230,185.32137213,155.38,155.31,8.01833869]
[1748806775231,36.42137213,155.38,155.36,19.85966388]
[1748806776602,36.42137213,155.38,155.36,26.29630905]
[1748806777820,36.42137213,155.38,155.32,22.53412309]
[1748806778130,36.42137213,155.38,155.36,19.85966388]
[1748806778624,36.42137213,155.38,155.35,19.85966388]
[1748806780225,36.42137213,155.38,155.35,26.29663824]
[1748806783308,36.42137213,155.38,155.36,19.85966388]
[1748806783741,36.42137213,155.38,155.37,19.85966388]
[1748806784540,36.42137213,155.38,155.37,26.29591283]
[1748806784752,161.36327218,155.42,155.37,26.29591283]
[1748806784909,181.22293606,155.42,155.37,26.29591283]
[1748806785108,181.22293606,155.42,155.38,19.85966388]
[1748806785531,161.36327218,155.42,155.38,19.85966388]
[1748806786132,181.22293606,155.42,155.38,19.85966388]
[1748806786345,168.75966388,155.42,155.38,19.85966388]
[1748806787254,175.19385565,155.42,155.37,26.29591283]
[1748806787437,19.85966388,155.41,155.37,19.85966388]
[1748806787635,19.85966388,155.41,155.36,26.29624301]
[1748806789362,19.85966388,155.41,155.36,6.43657913]
[1748806789544,19.85966388,155.4,155.35,36.53668186]
[1748806791861,19.85966388,155.4,155.36,19.85966388]
[1748806793461,19.85966388,155.37,155.31,8.01834056]
[1748806793663,19.85966388,155.35,155.31,16.67844056]
[1748806793963,19.85966388,155.35,155.31,10.24]
[1748806794266,19.85966388,155.34,155.31,10.24]
[1748806794434,19.85966388,155.33,155.31,10.24]
[1748806795135,19.85966388,155.32,155.31,10.24]
[1748806795354,19.85966388,155.32,155.27,124.35416388]
[1748806795657,19.85966388,155.32,155.27,122.75966388]
[1748806795956,19.85966388,155.32,155.27,129.20001418]
[1748806796958,26.2980605,155.32,155.27,129.20001418]
[1748806797137,19.85966388,155.31,155.27,109.3403503]
[1748806797642,26.2980605,155.32,155.27,129.20001418]
[1748806797843,19.85966388,155.32,155.27,129.20001418]
[1748806798449,19.85966388,155.33,155.28,19.85966388]
[1748806798942,19.85966388,155.33,155.28,26.29937683]
[1748806799138,19.85966388,155.33,155.29,19.85966388]
[1748806800265,19.85966388,155.34,155.29,19.85966388]
[1748806800960,26.29718139,155.34,155.29,19.85966388]
[1748806801160,19.85966388,155.33,155.29,6.43940385]
[1748806801344,19.85966388,155.33,155.29,26.29906773]
[1748806806853,46.0462,155.37,155.29,26.29906773]
[1748806807062,19.85966388,155.37,155.32,19.85966388]
[1748806807446,148.9,155.38,155.31,19.85966388]
[1748806807640,19.85966388,155.36,155.31,19.85966388]
[1748806808053,19.85966388,155.36,155.31,26.29800357]
[1748806808465,19.85966388,155.35,155.31,6.43833969]
[1748806811677,19.85966388,155.35,155.31,19.85966388]
[1748806812384,19.85966388,155.34,155.29,52.29908466]
[1748806812567,19.85966388,155.34,155.29,26.29908466]
[1748806823186,19.85966388,155.33,155.28,19.85966388]
[1748806823685,19.85966388,155.32,155.28,19.85966388]
[1748806824184,26.29804017,155.32,155.28,19.85966388]
[1748806824688,19.85966388,155.32,155.28,19.85966388]
[1748806825063,19.85966388,155.32,155.27,36.54004384]
[1748806826684,26.29766217,155.33,155.28,19.85966388]
[1748806826889,19.85966388,155.33,155.28,19.85966388]
[1748806828080,19.85966388,155.33,155.28,26.29939548]
[1748806831483,26.29769695,155.33,155.28,19.85966388]
[1748806831698,19.85966388,155.32,155.27,36.539917]
[1748806831910,19.85966388,155.32,155.27,10.24]
[1748806832212,19.85966388,155.31,155.27,16.68036161]
[1748806833006,19.85966388,155.31,155.27,36.54002549]
[1748806833500,6.43803307,155.33,155.27,36.54002549]
[1748806833501,19.85966388,155.32,155.27,36.54002549]
[1748806833803,19.85966388,155.33,155.28,19.85966388]
[1748806835502,148.9,155.34,155.3,19.85966388]
[1748806837386,148.9,155.34,155.3,26.29857598]
[1748806838999,148.9,155.34,155.33,19.85966388]
[1748806839204,19.85966388,155.38,155.33,19.85966388]
[1748806839794,19.85966388,155.37,155.32,19.85966388]
[1748806841006,19.85966388,155.37,155.32,26.29771944]
[1748806845416,19.85966388,155.37,155.33,19.85966388]
[1748806846492,19.85966388,155.36,155.32,19.85966388]
[1748806847898,19.85966388,155.36,155.31,26.29832465]
[1748806850697,19.85966388,155.36,155.32,19.85966388]
[1748806851091,19.85966388,155.37,155.33,19.85966388]
[1748806852014,148.9,155.38,155.34,19.85966388]
[1748806852796,148.9,155.38,155.35,19.85966388]
[1748806853414,19.85966388,155.39,155.35,19.85966388]
[1748806854416,19.85966388,155.39,155.34,6.4371105]
[1748806854417,19.85966388,155.39,155.34,26.29677438]
[1748806857727,19.85966388,155.4,155.35,19.85966388]
[1748806858028,26.29468219,155.4,155.35,19.85966388]
[1748806859823,26.29468219,155.4,155.35,26.29666045]
[1748806860021,19.85966388,155.39,155.35,26.29666045]
[1748806861339,12.72322682,155.39,155.35,12.72322682]
[1748806862435,12.72322682,155.41,155.37,12.72322682]
[1748806863315,26.30921427,155.41,155.37,19.87458695]
[1748806864421,185.12769825,155.46,155.4,19.87458695]
[1748806864718,185.12769825,155.46,155.42,19.87458695]
[1748806864923,205.0022852,155.46,155.41,19.87458695]
[1748806865123,211.43484091,155.46,155.41,19.87458695]
[1748806865716,19.87458695,155.45,155.41,19.87458695]
[1748806868122,19.87458695,155.45,155.41,26.30908623]
[1748806873237,26.30754847,155.45,155.37,26.0]
[1748806873440,19.87458695,155.42,155.37,6.43610784]
[1748806873630,19.87458695,155.41,155.37,6.43610784]
[1748806874147,19.87458695,155.41,155.36,36.53111028]
[1748806874442,19.87458695,155.4,155.36,16.65652333]
[1748806875635,19.87458695,155.41,155.36,36.53111028]
[1748806876333,19.87458695,155.41,155.37,19.87458695]
[1748806876843,19.87458695,155.41,155.37,26.31073605]
[1748806885543,19.87458695,155.42,155.37,26.31073605]
[1748806886038,19.87458695,155.42,155.38,19.87458695]
[1748806887558,19.87458695,155.42,155.38,26.31019365]
[1748806888956,19.87458695,155.42,155.37,6.43624895]
[1748806889160,19.87458695,155.41,155.37,26.3108359]
[1748806890242,19.87458695,155.41,155.37,6.43624895]
[1748806893167,19.87458695,155.4,155.36,10.22]
[1748806893364,6.43462583,155.41,155.36,10.22]
[1748806893365,19.87458695,155.39,155.36,10.22]
[1748806901156,12.72286373,155.39,155.36,10.22]
[1748806901858,12.72286373,155.39,155.35,19.15994055]
[1748806902557,12.72286373,155.4,155.35,19.15994055]
[1748806902758,12.72286373,155.4,155.36,12.72286373]
[1748806903879,148.9,155.43,155.36,1.5236]
[1748806904091,12.72286373,155.41,155.36,14.24646373]
[1748806904380,12.72286373,155.41,155.36,12.72286373]
[1748806904752,155.33379128,155.43,155.37,12.72286373]
[1748806904957,12.72286373,155.42,155.37,12.72286373]
[1748806905982,19.15715809,155.42,155.37,12.72286373]
[1748806906185,19.15715809,155.42,155.36,19.1593942]
[1748806906186,12.72286373,155.41,155.36,19.1593942]
[1748806907063,19.15750674,155.41,155.36,19.1593942]
[1748806907791,12.72286373,155.39,155.34,10.22]
[1748806907974,12.72286373,155.38,155.34,10.22]
[1748806909170,39.4,155.42,155.35,19.88191639]
[1748806909371,19.88191639,155.41,155.36,19.88191639]
[1748806910282,19.88191639,155.42,155.38,19.88191639]
[1748806910483,168.78191639,155.43,155.39,19.88191639]
[1748806910664,19.88191639,155.44,155.39,19.88191639]
[1748806911368,19.88191639,155.44,155.39,26.31698512]
[1748806912985,19.88191639,155.44,155.39,36.53698512]
[1748806914103,19.88191639,155.43,155.39,36.53698512]
[1748806926691,6.43397318,155.43,155.35,10.2]
[1748806926878,19.88191639,155.41,155.36,19.88191639]
[1748806927383,6.43397318,155.43,155.35,16.63707756]
[1748806927384,19.88191639,155.4,155.35,36.51899395]
[1748806927889,19.88191639,155.41,155.36,19.88191639]
[1748806928806,19.88191639,155.41,155.36,26.31851419]
[1748806931412,12.72069584,155.41,155.36,19.15729364]
[1748806932509,12.72069584,155.42,155.37,12.72069584]
[1748806933715,188.28,155.43,155.37,19.15658878]
[1748806933928,188.28,155.43,155.39,12.72069584]
[1748806934089,148.9,155.43,155.39,12.72069584]
[1748806935791,148.9,155.43,155.39,19.15591595]
[1748806936295,161.62069584,155.43,155.36,6.43666323]
[1748806936498,161.62069584,155.43,155.38,12.72069584]
[1748806937214,161.62069584,155.43,155.38,19.87057852]
[1748806937215,168.77057852,155.43,155.38,19.87057852]
[1748806938713,168.77057852,155.43,155.39,6.43542055]
[1748806939088,148.9,155.43,155.39,26.30599907]
[1748806941815,148.9,155.43,155.39,19.87057852]
[1748806943825,148.9,155.43,155.39,26.30580291]
[1748806945303,148.9,155.43,155.38,26.30641324]
[1748806946215,168.77057852,155.43,155.38,26.30641324]
[1748806954236,148.9,155.43,155.38,26.30641324]
[1748806954714,168.77057852,155.43,155.38,26.30641324]
[1748806956435,148.9,155.43,155.38,26.30641324]
[1748806957231,148.9,155.43,155.38,19.15283343]
[1748806961641,148.9,155.43,155.38,12.71699871]
[1748806962136,148.9,155.43,155.39,12.71699871]
[1748806962618,148.9,155.43,155.37,10.2]
[1748806962619,37.04789021,155.44,155.37,10.2]
[1748806962930,37.04789021,155.44,155.4,12.71699871]
[1748806963138,2.52913075,155.6,155.45,6.0843]
[1748806963321,2.52913075,155.6,155.53,12.71699871]
[1748806963634,2.52913075,155.6,155.56,38.71699871]
[1748806963932,2.52913075,155.6,155.57,12.71699871]
[1748806964231,2.52913075,155.6,155.56,12.71699871]
[1748806964528,12.71699871,155.59,155.53,23.51699871]
[1748806964920,21.67292869,155.6,155.53,23.51699871]
[1748806965121,21.67292869,155.6,155.54,12.71699871]
[1748806965331,28.78692092,155.6,155.54,19.83099094]
[1748806968036,28.78692092,155.6,155.55,19.83099094]
[1748806968238,8.95592998,155.6,155.56,19.83099094]
[1748806968440,8.95592998,155.6,155.57,19.83099094]
[1748806968830,8.95592998,155.6,155.56,19.83099094]
[1748806971267,8.95592998,155.6,155.53,10.8]
[1748806971268,2.52913075,155.6,155.53,10.8]
[1748806971425,2.52913075,155.6,155.59,19.83099094]
[1748806971733,8.95587637,155.6,155.58,19.83099094]
[1748806971934,8.95587637,155.6,155.57,19.83099094]
[1748806972329,8.95587637,155.6,155.58,19.83099094]
[1748806973839,2.52913075,155.6,155.59,58.31163074]
[1748806974234,2.52913075,155.6,155.59,69.11163074]
[1748806975445,6.42389931,155.67,155.61,26.0]
[1748806975621,6.42389931,155.67,155.65,19.83099094]
[1748806976622,6.42389931,155.67,155.64,19.83099094]
[1748806977746,26.25489025,155.67,155.59,10.8]
[1748806977923,19.83099094,155.64,155.6,19.83099094]
[1748806978125,19.83099094,155.63,155.59,19.83099094]
[1748806978321,19.83099094,155.64,155.59,19.83099094]
[1748806979121,62.78351259,155.67,155.59,19.83099094]
[1748806979326,19.83099094,155.6,155.5,7.8246]
[1748806979628,60.15099094,155.61,155.56,19.83099094]
[1748806979850,6.42673521,155.6,155.58,19.83099094]
[1748806980132,6.42640099,155.61,155.58,19.83099094]
[1748806980460,6.42640099,155.61,155.57,19.83099094]
[1748806980633,6.42640099,155.61,155.58,19.83099094]
[1748806980948,6.42640099,155.61,155.59,19.83099094]
[1748806981856,6.42549636,155.63,155.59,19.83099094]
[1748806982842,26.2564873,155.63,155.58,19.83099094]
[1748806983242,6.42549636,155.63,155.59,19.83099094]
[1748806986372,26.2564873,155.63,155.58,19.83099094]
[1748806986553,19.83099094,155.62,155.58,19.83099094]
[1748806987364,6.42632221,155.61,155.58,19.83099094]
[1748806987867,6.42632221,155.61,155.57,26.0]
[1748806988056,6.42632221,155.61,155.58,19.83099094]
[1748806989953,19.83099094,155.64,155.59,19.83099094]
[1748806990468,19.83099094,155.65,155.6,19.83099094]
[1748806991747,26.25566167,155.65,155.6,19.83099094]
[1748806994585,6.42384531,155.67,155.63,19.83099094]
[1748806994864,6.42384531,155.67,155.64,19.83099094]
[1748806996570,6.42384531,155.67,155.63,19.83099094]
[1748807000000,19.83099094,155.66,155.61,19.83099094]
[1748807000175,19.83099094,155.65,155.6,19.83099094]
[1748807001058,6.42508352,155.64,155.6,19.83099094]
[1748807008676,26.25607446,155.64,155.59,10.7]
[1748807008874,19.83099094,155.63,155.59,30.53099094]
[1748807009067,19.83099094,155.63,155.59,19.83099094]
[1748807010568,6.42590926,155.62,155.59,19.83099094]
[1748807013593,6.42590926,155.62,155.56,26.0]
[1748807013594,19.83099094,155.62,155.56,26.0]
[1748807013783,19.83099094,155.62,155.57,19.83099094]
[1748807014594,19.83099094,155.62,155.58,19.83099094]
[1748807016096,6.42632221,155.61,155.58,19.83099094]
[1748807020902,6.42632221,155.61,155.57,19.83099094]
[1748807021911,6.42632221,155.61,155.55,10.7]
[1748807022096,19.83099094,155.59,155.55,10.7]
[1748807022299,19.83099094,155.58,155.53,19.83099094]
[1748807022548,6.42797454,155.57,155.53,19.83099094]
[1748807022886,19.83099094,155.56,155.51,30.53099094]
[1748807023086,19.83099094,155.55,155.51,10.7]
[1748807023307,19.83099094,155.55,155.5,19.83099094]
[1748807024610,26.26020529,155.54,155.49,19.83099094]
[1748807026190,26.26020529,155.54,155.48,26.0]